Cogmind - Beta 10.2 @@@ ROGUE MODE // 2021.02.07 @ 16:28:12 Player: whisper Result: Destroyed by D-53 Grenadier via exploding Plasma Injector Performance ------------- Evolutions (0) 0 Regions Visited (2) 400 Robots Destroyed (8) 40 Value Destroyed (213) 213 Prototype IDs (4) 80 Alien Tech Used (0) 0 Bonus (0) 0 TOTAL SCORE: 733 Bonus ------- None Cogmind --------- Core Integrity 0/250 Matter 300/300 Energy 98/100 System Corruption 0% Temperature Cool (12) Movement Core (50) Location -10/Mines Parts ------- > --- POWER (1) -------- (None) > --- PROPULSION (2) --- (None) > --- UTILITY (2) ------ (None) > --- WEAPON (2) ------- (None) > --- INVENTORY (4) ---- Light Treads Large Storage Unit High-capacity Battery (400) Medium Laser Peak State ------------ > --- POWER ------------ Ion Engine > --- PROPULSION ------- Aluminum Leg Aluminum Leg > --- UTILITY ---------- Heat Shielding Large Storage Unit > --- WEAPON ----------- Medium Laser Medium Laser > --- INVENTORY -------- Light Ion Engine Light Treads Light Treads Aluminum Leg Large Storage Unit High-capacity Battery Large Matter Pod EM Pulse Gun Light Assault Rifle Hammer [Rating: 9] Favorites ----------- Power Light Ion Engine Engine Light Ion Engine Propulsion Aluminum Leg Leg Aluminum Leg Utility Large Storage Unit Device Heat Shielding Storage Large Storage Unit Weapon Medium Laser Energy Gun Medium Laser Ballistic Gun Light Assault Rifle Impact Weapon Hammer Build | -11 -10 -10 ------- Run | Scr Mat Min Slots Evolved . | . . . Power . | . . . Propulsion . | . . . Utility . | . . . Weapon . | . . . Parts Attached 17 | 6 8 3 Power 2 | 1 1 . Engine 2 | 1 1 . Core . | . . . Reactor . | . . . Propulsion 4 | 2 2 . Treads . | . . . Leg 4 | 2 2 . Wheel . | . . . Hover . | . . . Flight . | . . . Utility 7 | 1 5 1 Device 2 | . 2 . Storage 5 | 1 3 1 Processor . | . . . Hackware . | . . . Protection . | . . . Artifact . | . . . Weapon 4 | 2 . 2 Energy Gun 2 | 2 . . Energy Cannon . | . . . Ballistic Gun 1 | . . 1 Ballistic Cannon . | . . . Launcher . | . . . Special Weapon . | . . . Impact Weapon 1 | . . 1 Slashing Weapon . | . . . Piercing Weapon . | . . . Special Melee Weapon . | . . . Unidentified Prototypes . | . . . Parts Lost 6 | . 1 5 Power 2 | . 1 1 Propulsion 2 | . . 2 Utility . | . . . Weapon 2 | . . 2 Highest Loss Streak 4 | . 1 4 Average Slot Usage (%) 96 | . 98 91 Engine 12 | . 12 12 Leg 27 | . 28 24 Device 7 | . 10 . Storage 19 | . 16 25 Energy Gun 26 | . 28 23 Naked Turns . | . . . Heaviest Build 41 | 11 41 41 Greatest Support 20 | 20 20 20 Greatest Overweight (x) 5 | 1 2 5 Average Overweight (x) . | . . 1 Largest Inventory Capacity 16 | 6 16 16 Average Capacity 10 | 5 8 14 Most Carried 10 | 6 10 10 Average Carried 7 | 3 7 9 Final Capacity 16 | 6 16 4 Final Carried 10 | 6 10 4 Class Distribution -------------------- 100% | Mutant Dominant Class ---------------- Mutant | -10/Materials Mutant | -10/Mines Resources | -11 -10 -10 ----------- Run | Scr Mat Min Matter Collected 509 | 260 222 27 Remotely . | . . . Salvage Created 275 | . 226 49 Parts 19 | . 19 . Haulers Intercepted . | . . . Recyclers Shooed 1 | . 1 . Parts Field Recycled . | . . . Retrieved Matter . | . . . Parts Self-Destructed . | . . . Prevented . | . . . Kills | -11 -10 -10 ------- Run | Scr Mat Min Combat Hostiles Destroyed 8 | . 4 4 Melee 1 | . . 1 Guns 7 | . 4 3 Classes Destroyed 4 | . 3 1 Operator 1 | . 1 . Watcher 3 | . 3 . Grunt 4 | . 4 . Assembled 4 | . . 4 Best Kill Streak 4 | . 2 4 Combat Bots Only 4 | . 2 4 Max Kills in Single Turn 1 | . 1 1 Gunslinging . | . . . Exploded . | . . . Melee 1 | . . 1 Uniques/NPCs Destroyed . | . . . Combat | -11 -10 -10 -------- Run | Scr Mat Min Damage Taken 794 | . 147 647 Core 272 | . 11 261 Absorbed by Shields . | . . . Core Remaining (%) 100 | 100 . . Volleys Fired 33 | . 25 8 Largest 2 | . 2 2 Hottest 100 | . 100 100 Shots Fired 66 | . 50 16 Gun 66 | . 50 16 Cannon . | . . . Launcher . | . . . Special . | . . . Kinetic 1 | . . 1 Thermal 65 | . 50 15 Explosive . | . . . Electromagnetic . | . . . Robot Hit Streak 5 | . 5 4 Robot Miss Streak 3 | . 3 2 Penetration Max . | . . . Secondary Targets . | . . . Shots Hit Robots 45 | . 30 15 Core Hits 22 | . 15 7 Critical Hits . | . . . Critical Kills . | . . . Critical Parts Destroyed . | . . . Melee Attacks 6 | . . 6 Impact 6 | . . 6 Slashing . | . . . Piercing . | . . . Sneak Attacks . | . . . Combat Hostiles . | . . . Follow-up Attacks . | . . . Damage Inflicted 589 | . 377 212 Guns 497 | . 377 120 Cannons . | . . . Explosions . | . . . Melee 92 | . . 92 Ramming . | . . . Kinetic 7 | . . 7 Thermal 490 | . 377 113 Explosive . | . . . Electromagnetic . | . . . Impact 92 | . . 92 Slashing . | . . . Piercing . | . . . Highest Corruption . | . . . Average Corruption . | . . . Corruption Purged . | . . . Overload Shots . | . . . Overflow Damage . | . . . Projectiles . | . . . Explosions . | . . . Melee . | . . . Knockbacks 1 | . . 1 Impact 1 | . . 1 Kinetic . | . . . Secondary . | . . . Self-Inflicted Damage . | . . . Shots . | . . . Rammed . | . . . Targets Rammed . | . . . Kicked . | . . . Crushed . | . . . Highest Temperature 312 | . 240 312 Average Temperature 110 | . 77 190 Received Heat Transfer 356 | . 15 341 Effects 1 | . 1 . Energy Bleed 1 | . 1 . Siege Activations . | . . . Robots Corrupted . | . . . Combat Hostiles . | . . . Parts Fried . | . . . Impact Corruptions . | . . . Robots Melted . | . . . Combat Hostiles . | . . . Parts Melted 3 | . 3 . Heat Transferred 1443 | . 1110 333 Parts Sabotaged . | . . . Parts Stolen . | . . . Parts Stripped . | . . . Power Chain Reactions . | . . . Missiles Intercepted . | . . . Alert | -11 -10 -10 ------- Run | Scr Mat Min Peak Influence 149 | . 149 . Initial . | . . . Average 47 | . 69 . Maximum Alert Level . | . . . Low Security (%) 100 | 100 100 100 Level 1 . | . . . Level 2 . | . . . Level 3 . | . . . Level 4 . | . . . Level 5 . | . . . High Security . | . . . Max Security . | . . . Squads Dispatched 3 | . 3 . Investigation 2 | . 2 . Extermination . | . . . Reinforcement 1 | . 1 . Assault . | . . . Garrison . | . . . Intercept . | . . . Construction Impeded . | . . . Haulers Reinforced . | . . . Stealth | -11 -10 -10 --------- Run | Scr Mat Min Distress Signals 1 | . 1 . Communications Jammed . | . . . Distress Signals . | . . . Times Spotted 30 | . 8 22 Peak Tracking Total 13 | . 2 13 Tactical Retreats 1 | . . 1 Traps | -11 -10 -10 ------- Run | Scr Mat Min Traps Triggered . | . . . Indirectly . | . . . Trap Hack Attempts . | . . . Triggered . | . . . Disarmed . | . . . Reprogrammed . | . . . Reused . | . . . Traps Extracted . | . . . Installed . | . . . Triggered . | . . . Machines | -11 -10 -10 ---------- Run | Scr Mat Min Machines Disabled . | . . . Max in Single Turn . | . . . Machines Sabotaged . | . . . Garrisons Compromised . | . . . Overloaded Fab Kills . | . . . Fab Network Shutdowns . | . . . Hacking | -11 -10 -10 --------- Run | Scr Mat Min Machines Accessed 8 | . 8 . Terminals 6 | . 6 . Fabricators . | . . . Repair Stations . | . . . Recycling Units 2 | . 2 . Scanalyzers . | . . . Garrison Access . | . . . Total Hacks 25 | . 25 . Successful 18 | . 18 . Failed 7 | . 7 . Catastrophic . | . . . Database Lockouts . | . . . Manual 19 | . 19 . Terminals 23 | . 23 . Fabricators . | . . . Repair Stations . | . . . Recycling Units 2 | . 2 . Scanalyzers . | . . . Garrison Access . | . . . Terminal Hacks 8 | . 8 . Robot Analysis 2 | . 2 . Prototype ID Bank 3 | . 3 . Terminal Index 1 | . 1 . Locate Traps 1 | . 1 . Hauler Manifests 1 | . 1 . Fabricator Hacks . | . . . Repair Station Hacks . | . . . Recycling Unit Hacks . | . . . Scanalyzer . | . . . Garrison Access Hacks . | . . . Unauthorized Hacks 10 | . 10 . Terminals 8 | . 8 . Track 4 | . 4 . Assimilate 1 | . 1 . Botnet 2 | . 2 . Operators 1 | . 1 . Fabricators . | . . . Repair Stations . | . . . Recycling Units 2 | . 2 . Tunnel 2 | . 2 . Scanalyzers . | . . . Garrison Access . | . . . Data Cores Recovered . | . . . Used . | . . . Hacking Detections 6 | . 6 . Full Trace Events . | . . . Feedback Events . | . . . Feedback Blocked . | . . . Robot Schematics Acquired . | . . . Robots Built . | . . . Matter . | . . . Time . | . . . Total Robot Build Rating . | . . . Part Schematics Acquired . | . . . Parts Built . | . . . Matter . | . . . Time . | . . . Total Part Build Rating . | . . . Parts Repaired . | . . . Time . | . . . Parts Recycled . | . . . Recycled Matter . | . . . Retrieved Matter . | . . . Retrieved Components . | . . . Parts Scanalyzed . | . . . Part Schematics Acquired . | . . . Parts Damaged . | . . . Bothacking | -11 -10 -10 ------------ Run | Scr Mat Min Used RIF Installer . | . . . Robots Hacked . | . . . Non-combat . | . . . Combat . | . . . Robot Hacks Applied . | . . . Relay Couplers Released . | . . . Robots Rewired . | . . . Allies Hacked . | . . . Hacks Repelled . | . . . Allies | -11 -10 -10 -------- Run | Scr Mat Min Total Allies 3 | . . 3 Largest Group 3 | . . 3 Highest-Rated Group 40 | . . 40 Highest-Rated Ally 16 | . . 16 Total Orders . | . . . Ally Attacks 17 | . . 17 Total Damage 162 | . . 162 Kills 2 | . . 2 Allies Corrupted 1 | . . 1 Allies Melted . | . . . Intel | -11 -10 -10 ------- Run | Scr Mat Min Robot Analysis Total 2 | . 2 . Derelict Logs Recovered 2 | . . 2 Drone Launches . | . . . Drone Recoveries . | . . . Exploration | -11 -10 -10 ------------- Run | Scr Mat Min Turns Passed 1212 | 77 827 308 Spaces Moved 709 | 52 479 178 Core 51 | 3 . 48 Treads . | . . . Legs 658 | 49 479 130 Wheels . | . . . Hover . | . . . Flight . | . . . Fastest Speed 50 | 50 120 50 Average Speed 135 | 120 131 147 Slowest Speed 300 | 150 180 300 Overloaded Moves . | . . . Propulsion Burnouts . | . . . Robots Hopped . | . . . Cave-ins Triggered . | . . . Exploration Rate (%) 46 | 5 81 54 Regions Visited 2 Branch Regions 1 Pre-discovered Areas 2 | . 2 . Known Exits Taken . | . . . Unknown Exits Taken 2 | 1 1 . Scrap Searched 1 | . . 1 Spaces Dug . | . . . Terrain Destroyed . | . . . Melee . | . . . Projectile . | . . . AOE . | . . . Terrain Rammed . | . . . Walls Destroyed . | . . . Machines Disabled . | . . . Actions | -11 -10 -10 --------- Run | Scr Mat Min Total 889 | 63 627 199 Wait 101 | . 101 . Move 707 | 51 478 178 Hop . | . . . Pick Up 13 | 6 7 . Fast Attach 10 | 6 3 1 Attach 1 | . 1 . Detach 1 | . . 1 Swap 6 | . 4 2 Drop 11 | . 8 3 Fire 33 | . 25 8 Melee 6 | . . 6 Ram . | . . . Kick . | . . . Crush . | . . . Escape Stasis . | . . . Rewire . | . . . Trap . | . . . Miscellaneous . | . . . Route ------- -11/Scrapyard -10/Materials (discovered 4 exits: [*Mat x2] / [*Min x2]) -10/Mines History --------- Turn | Location | Event 4 | -11/Scrapyard | Discovered new exit (range 16) 78 | -11/Scrapyard | Entered Materials 314 | -10/Materials | Discovered new exit (range 9) 320 | -10/Materials | Build established: Mutant 371 | -10/Materials | Discovered new exit (range 13) 421 | -10/Materials | Discovered new exit (range 13) 619 | -10/Materials | Discovered new exit (range 10) 905 | -10/Materials | Entered Mines 909 | -10/Mines | Met a Derelict bent on vengeance 1062 | -10/Mines | Learned Materials garrison access intel 1099 | -10/Mines | Assembled infested the area 1104 | -10/Mines | Assisted by a Guerilla fighting off Assembled 1138 | -10/Mines | Assisted by bots powering up and referring to "LRC-V3" 1184 | -10/Mines | Core integrity fell below 50% 1193 | -10/Mines | Learned Materials emergency access door positions 1207 | -10/Mines | Core integrity fell below 20% 1213 | -10/Mines | Lost 4 parts (1p2n1w) 1213 | -10/Mines | Destroyed by D-53 Grenadier via exploding Plasma Injector Last Messages --------------- 01193_ Acquired derelict log, extracted data. Data stored: Materials emergency access points. 01197_ Searching scrap... 01197_ Found 32 Matter. 01197_ Found EM Pulse Gun. 01197_ Found Lrg. Storage Unit. 01197_ Found 16 Matter. 01197_ Dropped Aluminum Leg. 01198_ Acquired Lrg. Storage Unit. 01200_ as-36849 sneak attacks. 01200_ T-07 Excavator destroyed. 01200_ Acquired 10 matter. 01202_ as-88499 sneak attacks. 01204_ as-88499 destroyed. 01204_ as-36849 destroyed. 01204_ as-37934 destroyed. 01204_ as-51973 destroyed. 01206_ as-63078 destroyed. 01213_ Plasma Injector explodes. 01213_ Hammer destroyed. Map ----- +----------------------------------------------------+ | ##?????#####??#####??????????## ##?????? | | ####### ##???????#######??# ##??????? | | ##?????## #### ##??????? | | ####### ##????# ## ##?????? | | ##?????# #???## #####?? | | ##??????## ##### ##? | | #?????##### ## #? | | ??????# *=## ###### #? | | ??????#![!## ###########????## #? | | ??????#[!!# ##???????????????#### ##? | | ###???# =%%% ##???????????????????## #?? | | #?## %%%%##????????????????????## #?? | | ## %% ##???????????????####### #?? | | ########????????# #####?? | | ## #???????# # #?????? | | ?## #?????# ## #?????? | | ??### ####$ #### #### ###???? | | ????## ####???? #?## #???? | | ?????# #????????? ? ##?## #???? | | ###### #????????? ? #????# #???? | | #?????????? ?? #??????# #???? | | ###### ###???????? ??????????# ##??? | | ??#### ######???# ??#####???# ##?? | | ?## % ##### #?## ##?## #?? | | ! ### ### """" #?? | | ## ## @ ## """" #?? | | ##??## ### ### """" #?? | | ?????# #?# #?# #?? | | ?????## ##?# d #### #?? | | ??????####??## # ###### #?? | | ?????????????# # d #???## #?? | | ?????????????#### #### #????## #?? | | ??????????????? ##???## ######## #?? | | ?????????????# ### #?????## ##?# #?? | | ?????????????#???# #??????#####??# #?? | | ?????????????????# #?????????????# ### ##?? | | ?????????????????? ??????????????# #?####??? | | ?????????????????? ??????????????# #???????? | | ?????????????????? ??????????????# #???????? | | ??????????????????#??????????????# #???????? | | ?????????????????????????????????# ##??????? | | ????????????????????????????????## #??????? | | ????????????????????????????????# #??????? | | ????????????????????????????????# ##??????? | | ??????????????????????????????? #???????? | | ??????????????????????????????### #???????? | | ????????????????????????????????# #???????? | | ????????????????????????????????## #???????? | | ?????????????????????????????????# #???????? | | ?????????????????????????????????# #???????? | +----------------------------------------------------+ Best States ------------- Heat Dissipation 25 Energy Generation 10 Energy Capacity 250 Matter Stores 300 Matter Capacity 300 Sight Range 16 Robot Scan Range 10 Terrain Scan Density 10 Heat Shielding 75 Evasion (%) 50 Item Schematics ----------------- None Robot Schematics ------------------ None Fabricated ------------ Nothing Alien Tech Used ----------------- None Achievements -------------- None Challenges ------------ None Game ------ Seed ActuatorEtherialScrap Manual? 0 Play Time 00:16:48 Cumulative 89.4 hours Start 2021.02.07 @ 14:56:00 End 2021.02.07 @ 16:28:12 Sessions 3 Manual Loads 0 Difficulty Rogue Special Mode None Game No. 31 Rogue 31 Adventurer 0 Explorer 0 Win Type - Total 2 Types 2/0/0/0/0/0/0/0/0 Lore% 52 Gallery% 54 Achievement% 44 Wizard Run 0 Options --------- ASCII 1 Keyboard 1 Movement Vi Keybinds 0 Fullscreen 2 Font 24/Smallcaps Map View 76x50 Tactical HUD 1 Map Filters NONE Filters NONE Steam 1 RUN: 7ff170da-1045-4204-b2dd-c1a7e01d15ae